[Event "EYCC 2017"]
[Site "Mamaia"]
[Date "2017.09.06"]
[Round "2"]
[White "Salajan, Stefania"]
[Black "Pawicka, Magdalena"]
[Result "0-1"]
[ECO "A05"]
[WhiteElo "1327"]
[BlackElo "1826"]
[Annotator "NA"]
[PlyCount "120"]
[EventDate "2017.??.??"]
[EventType "swiss"]
[EventCountry "ROU"]
[SourceTitle "playchess.com"]
[Source "ChessBase"]
[SourceQuality "1"]
[TimeControl "40/5400+30:1800+30"]

1. Nf3 {[%emt 0:00:00]} Nf6 {[%emt 0:00:13]} 2. b3 {[%emt 0:00:00]} e6 {[%emt 0:00:46]} 3. Bb2 {[%emt 0:00:22]} Be7 {[%emt 0:00:44]} 4. e3 {[%emt 0:00:50]} d5 {[%emt 0:02:24]} 5. Bb5+ {[%emt 0:01:26]} Bd7 {[%emt 0:07:07]} 6. Bxd7+ {[%emt 0:00:27]} Nbxd7 {[%emt 0:00:22]} 7. d3 {[%emt 0:01:52]} O-O {[%emt 0:02:27]} 8. O-O {[%emt 0:00:47]} c5 {[%emt 0:04:17]} 9. Nbd2 {[%emt 0:01:58]} Rc8 {[%emt 0:06:14]} 10. c4 {[%emt 0:03:33]} Qc7 {[%emt 0:04:35]} 11. Qe2 {[%emt 0:06:39]} Rfd8 {[%emt 0:04:26]} 12. Rfd1 {[%emt 0:13:30]} Bd6 {[%emt 0:05:30]} 13. h3 {[%emt 0:03:50]} Ne5 {[%emt 0:03:51]} 14. Nxe5 {[%emt 0:05:31]} Bxe5 {[%emt 0:00:08]} 15. Bxe5 {[%emt 0:00:25]} Qxe5 {[%emt 0:00:07]} 16. Nf3 {[%emt 0:00:41]} Qh5 {[%emt 0:02:43]} 17. Qd2 {[%emt 0:03:12]} dxc4 {[%emt 0:06:01]} 18. bxc4 {[%emt 0:01:31]} Rd7 {[%emt 0:04:14]} 19. Qc3 {[%emt 0:03:05]} Rcd8 {[%emt 0:04:15]} 20. d4 {[%emt 0:02:36]} cxd4 {[%emt 0:07:12]} 21. exd4 {[%emt 0:10:00]} Ne4 {[%emt 0:03:48]} 22. Qc2 {[%emt 0:05:30]} Ng5 {[%emt 0:00:07]} 23. Nxg5 {[%emt 0:02:05]} Qxg5 {[%emt 0:02:58]} 24. Qb2 {[%emt 0:04:07]} Qf6 {[%emt 0:04:13]} 25. Rac1 {[%emt 0:01:33]} b6 {[%emt 0:01:39]} 26. Qa3 {[%emt 0:05:11]} a5 {[%emt 0:03:16]} 27. c5 {[%emt 0:01:30]} Rxd4 {[%emt 0:00:16]} 28. Rxd4 Qxd4 29. c6 {[%emt 0:01:57]} h6 {[%emt 0:02:56]} 30. c7 {[%emt 0:02:01]} Rc8 {[%emt 0:04:35]} 31. Qf3 {[%emt 0:01:50]} Qd5 {[%emt 0:02:28]} 32. Qe2 {[%emt 0:03:11]} Qd6 33. Qb5 {[%emt 0:00:14]} Rxc7 {[%emt 0:01:35]} 34. Rxc7 Qxc7 35. g3 {[%emt 0:02:09]} Kh7 {[%emt 0:00:52]} 36. Qd3+ {[%emt 0:00:31]} g6 {[%emt 0:00:14]} 37. Qf3 {[%emt 0:00:56]} b5 {[%emt 0:00:47]} 38. Qa3 {[%emt 0:02:18]} b4 {[%emt 0:00:12]} 39. Qb3 {[%emt 0:01:24]} Qc1+ {[%emt 0:01:13]} 40. Kg2 {[%emt 0:00:00]} Qd2 {[%emt 0:00:29]} 41. Qa4 {[%emt 0:02:13]} Qd5+ {[%emt 0:00:22]} 42. Kg1 {[%emt 0:01:01]} e5 {[%emt 0:01:03]} 43. a3 {[%emt 0:01:57]} bxa3 {[%emt 0:00:49]} 44. Qxa3 {[%emt 0:00:11]} Qb5 {[%emt 0:01:04]} 45. Qe7 {[%emt 0:01:20]} Kg7 {[%emt 0:00:14]} 46. Kg2 {[%emt 0:02:01]} a4 {[%emt 0:00:19]} 47. h4 {[%emt 0:00:48]} Qa5 {[%emt 0:01:25]} 48. Qa3 {[%emt 0:00:32]} Qd5+ {[%emt 0:00:19]} 49. Kg1 {[%emt 0:01:01]} Qb3 {[%emt 0:00:16]} 50. Qc1 a3 {[%emt 0:00:46]} 51. Qa1 {[%emt 0:02:07]} Qb2 {[%emt 0:00:09]} 52. Qxb2 {[%emt 0:00:43]} axb2 {[%emt 0:00:09]} 53. Kg2 {[%emt 0:00:13]} b1=Q {[%emt 0:00:08]} 54. Kf3 {[%emt 0:00:25]} Qd3+ {[%emt 0:00:10]} 55. Kg2 {[%emt 0:00:33]} Kf6 {[%emt 0:00:04]} 56. f3 {[%emt 0:01:16]} Kf5 {[%emt 0:00:09]} 57. g4+ {[%emt 0:00:31]} Kf4 {[%emt 0:00:06]} 58. h5 {[%emt 0:00:21]} Qxf3+ {[%emt 0:00:09]} 59. Kg1 {[%emt 0:00:15]} Kg3 {[%emt 0:00:06]} 60. hxg6 {[%emt 0:00:16]} Qg2# {[%emt 0:00:06]} 0-1

[Event "EYCC 2017"]
[Site "Mamaia"]
[Date "2017.09.06"]
[Round "2"]
[White "Berezovsky, Fiorina"]
[Black "Chicarosie, Ioana-Bianca"]
[Result "1/2-1/2"]
[ECO "B34"]
[WhiteElo "1317"]
[BlackElo "1565"]
[Annotator "NA"]
[PlyCount "120"]
[EventDate "2017.??.??"]
[EventType "swiss"]
[EventCountry "ROU"]
[SourceTitle "playchess.com"]
[Source "ChessBase"]
[SourceQuality "1"]
[TimeControl "40/5400+30:1800+30"]

1. e4 c5 2. Nf3 Nc6 3. d4 cxd4 4. Nxd4 Nf6 5. Nc3 e5 6. Nxc6 bxc6 7. Bg5 Bb4 8. Bd3 O-O 9. O-O Bxc3 10. bxc3 d5 11. Bxf6 Qxf6 12. c4 d4 13. c5 Qe7 14. Rb1 Be6 15. a4 Qxc5 16. Kh1 Rab8 17. Qh5 f6 18. f4 Ba2 19. Ra1 Bf7 20. Qg4 Bc4 21. fxe5 fxe5 22. Rab1 Bxd3 23. cxd3 Rxb1 24. Rxb1 Qc2 25. Qd1 Qxd1+ 26. Rxd1 c5 27. Rb1 Rc8 28. Kg1 c4 29. dxc4 Rxc4 30. Rb8+ Kf7 31. Rb7+ Kf6 32. Rxa7 d3 33. Rd7 Rxa4 34. Rxd3 Rxe4 35. Kf2 Rd4 36. Ra3 Rd6 37. Kf3 Kf5 38. h3 e4+ 39. Ke3 Rd5 40. g3 Rd3+ 41. Rxd3 exd3 42. Kxd3 Ke5 43. Ke3 h5 44. Kf3 Kf5 45. g4+ hxg4+ 46. hxg4+ Ke5 47. g5 Kf5 48. g6 Kxg6 49. Kg4 Kf6 50. Kf4 g6 51. Kg4 g5 52. Kg3 Kf5 53. Kf3 g4+ 54. Kg3 Kg5 55. Kg2 Kf4 56. Kf2 g3+ 57. Kg2 Kg4 58. Kg1 Kh3 59. Kh1 g2+ 60. Kg1 Kg3 1/2-1/2

[Event "EYCC 2017"]
[Site "Mamaia"]
[Date "2017.09.06"]
[Round "2"]
[White "Suparski, Dmitrii"]
[Black "Samunenkov, Igor"]
[Result "0-1"]
[ECO "C42"]
[WhiteElo "1265"]
[BlackElo "1794"]
[Annotator "NA"]
[PlyCount "104"]
[EventDate "2017.??.??"]
[EventType "swiss"]
[EventCountry "ROU"]
[SourceTitle "playchess.com"]
[Source "ChessBase"]
[SourceQuality "1"]
[TimeControl "40/5400+30:1800+30"]

1. e4 e5 2. Nf3 Nf6 3. Nxe5 Nxe4 4. Qe2 Qe7 5. Qxe4 d6 6. Nc3 Qxe5 7. Qxe5+ dxe5 8. Bc4 Be7 9. Nd5 Bd6 10. O-O O-O 11. d3 c6 12. Nc3 Nd7 13. Ne4 Be7 14. a4 Nb6 15. Ba2 Nd5 16. c4 Nb4 17. Be3 Bf5 18. Bb3 Nxd3 19. Ng3 Be6 20. Rab1 f5 21. f4 exf4 22. Bxf4 Nxf4 23. Rxf4 g5 24. Rd4 Bc5 25. Rbd1 Bxd4+ 26. Rxd4 Rad8 27. Rxd8 Rxd8 28. Bc2 Rd2 29. Bxf5 Bxc4 30. b4 Bd5 31. Ne4 Bxe4 32. Bxe4 Rd4 33. Bc2 Rxb4 34. g3 c5 35. Kf1 Rb2 36. Bd1 c4 37. Bf3 c3 38. Bd1 c2 39. Bxc2 Rxc2 40. Ke1 Rxh2 41. Kf1 h5 42. Kg1 Ra2 43. Kh1 Kg7 44. Kg1 Kf6 45. Kf1 Ke5 46. Ke1 Ke4 47. Kd1 h4 48. gxh4 gxh4 49. Kc1 h3 50. Kb1 Rg2 51. Kc1 h2 52. Kd1 h1=Q# 0-1

[Event "EYCC 2017"]
[Site "Mamaia"]
[Date "2017.09.06"]
[Round "2"]
[White "Tokarcik, Jan"]
[Black "Royal, Shreyas"]
[Result "0-1"]
[ECO "B72"]
[WhiteElo "1211"]
[BlackElo "1700"]
[Annotator "NA"]
[PlyCount "74"]
[EventDate "2017.??.??"]
[EventType "swiss"]
[EventCountry "ROU"]
[SourceTitle "playchess.com"]
[Source "ChessBase"]
[SourceQuality "1"]
[TimeControl "40/5400+30:1800+30"]

1. e4 c5 2. Nf3 d6 3. d4 cxd4 4. Nxd4 Nf6 5. Nc3 g6 6. Be3 Bg7 7. Be2 O-O 8. O-O a6 9. Qd2 b5 10. a3 Bb7 11. Bd3 Ng4 12. Rae1 Qc7 13. h3 Nxe3 14. Qxe3 Nd7 15. f4 Rac8 16. f5 Qb6 17. Nce2 Ne5 18. fxg6 hxg6 19. Nf4 Nxd3 20. Qxd3 Qxd4+ 21. Kh2 Qxd3 22. cxd3 Bxb2 23. Rf3 Bxa3 24. h4 b4 25. h5 g5 26. Rg3 b3 27. Rxg5+ Kh7 28. Re3 b2 29. Reg3 Rg8 30. h6 b1=Q 31. Kh3 Qh1+ 32. Kg4 Rxg5+ 33. Kxg5 Rg8+ 34. Ng6 Rxg6+ 35. Kf4 Qf1+ 36. Rf3 Bc1+ 37. Kf5 e6# 0-1

[Event "EYCC 2017"]
[Site "Mamaia"]
[Date "2017.09.06"]
[Round "2"]
[White "Patapovich, Mitrafan"]
[Black "Ljepic, Andrej"]
[Result "0-1"]
[ECO "C01"]
[WhiteElo "1202"]
[BlackElo "1616"]
[Annotator "NA"]
[PlyCount "68"]
[EventDate "2017.??.??"]
[EventType "swiss"]
[EventCountry "ROU"]
[SourceTitle "playchess.com"]
[Source "ChessBase"]
[SourceQuality "1"]
[TimeControl "40/5400+30:1800+30"]

1. e4 {[%emt 0:00:00]} e6 {[%emt 0:00:22]} 2. d4 {[%emt 0:00:00]} d5 {[%emt 0:00:08]} 3. exd5 {[%emt 0:00:00]} exd5 {[%emt 0:00:07]} 4. c4 {[%emt 0:00:39]} Nf6 {[%emt 0:01:10]} 5. Bg5 {[%emt 0:00:40]} c6 {[%emt 0:00:27]} 6. c5 {[%emt 0:00:29]} Bf5 {[%emt 0:00:42]} 7. Bd3 {[%emt 0:00:46]} Bxd3 {[%emt 0:00:31]} 8. Qxd3 {[%emt 0:00:28]} Be7 {[%emt 0:00:21]} 9. Nc3 {[%emt 0:00:17]} Nbd7 {[%emt 0:01:42]} 10. Nf3 {[%emt 0:00:15]} O-O {[%emt 0:00:30]} 11. O-O {[%emt 0:00:57]} Re8 {[%emt 0:03:59]} 12. Rfe1 {[%emt 0:00:31]} Qc7 {[%emt 0:03:58]} 13. Re2 {[%emt 0:02:23]} Nf8 {[%emt 0:03:46]} 14. Rae1 {[%emt 0:02:22]} Ne6 {[%emt 0:00:26]} 15. Re5 {[%emt 0:02:36]} Qd7 {[%emt 0:09:24]} 16. Qf5 {[%emt 0:03:20]} Rad8 {[%emt 0:04:50]} 17. Ne2 {[%emt 0:05:02]} g6 {[%emt 0:01:53]} 18. Qh3 {[%emt 0:01:17]} Nxg5 {[%emt 0:00:37]} 19. Nxg5 {[%emt 0:01:25]} Qxh3 {[%emt 0:00:49]} 20. Nxh3 {[%emt 0:00:28]} Ng4 {[%emt 0:00:49]} 21. f4 {[%emt 0:04:55]} Nxe5 {[%emt 0:00:14]} 22. fxe5 {[%emt 0:00:42]} b6 {[%emt 0:02:02]} 23. cxb6 {[%emt 0:04:48]} axb6 {[%emt 0:00:08]} 24. Rc1 {[%emt 0:00:33]} c5 {[%emt 0:00:11]} 25. Nf2 {[%emt 0:04:29]} cxd4 {[%emt 0:00:31]} 26. Nxd4 {[%emt 0:00:16]} Bc5 {[%emt 0:00:25]} 27. Nf3 {[%emt 0:00:30]} Rc8 {[%emt 0:00:24]} 28. Rd1 {[%emt 0:03:06]} Bxf2+ {[%emt 0:00:23]} 29. Kxf2 {[%emt 0:00:19]} Rc2+ {[%emt 0:00:08]} 30. Kf1 {[%emt 0:00:58]} Rxb2 {[%emt 0:00:16]} 31. Rxd5 {[%emt 0:00:21]} Rc8 {[%emt 0:00:48]} 32. Rd1 {[%emt 0:01:14]} Rcc2 {[%emt 0:00:45]} 33. a4 {[%emt 0:01:18]} Rxg2 {[%emt 0:00:28]} 34. Ne1 {[%emt 0:01:08]} Rbf2# {[%emt 0:00:22]} 0-1

[Event "EYCC 2017"]
[Site "Mamaia"]
[Date "2017.09.06"]
[Round "2"]
[White "Darie, Cleopatra-Iuliana"]
[Black "Shukhman, Anna"]
[Result "1-0"]
[ECO "B40"]
[WhiteElo "1120"]
[BlackElo "1583"]
[Annotator "NA"]
[PlyCount "73"]
[EventDate "2017.??.??"]
[EventType "swiss"]
[EventCountry "ROU"]
[SourceTitle "playchess.com"]
[Source "ChessBase"]
[SourceQuality "1"]
[TimeControl "40/5400+30:1800+30"]

1. e4 {[%emt 0:00:00]} c5 {[%emt 0:00:11]} 2. Nf3 {[%emt 0:00:03]} e6 {[%emt 0:00:04]} 3. c3 {[%emt 0:00:43]} Nc6 {[%emt 0:00:18]} 4. d4 {[%emt 0:01:36]} d5 {[%emt 0:00:11]} 5. Bd3 {[%emt 0:02:58]} cxd4 {[%emt 0:02:15]} 6. cxd4 {[%emt 0:02:14]} Bb4+ {[%emt 0:00:27]} 7. Bd2 {[%emt 0:00:54]} Bxd2+ {[%emt 0:01:14]} 8. Qxd2 {[%emt 0:00:27]} Nf6 {[%emt 0:01:29]} 9. Nc3 {[%emt 0:06:49]} dxe4 {[%emt 0:00:58]} 10. Bxe4 {[%emt 0:00:23]} Nxe4 {[%emt 0:01:40]} 11. Nxe4 {[%emt 0:00:13]} O-O {[%emt 0:01:35]} 12. O-O {[%emt 0:00:56]} f5 {[%emt 0:01:21]} 13. Nc5 {[%emt 0:01:15]} b6 {[%emt 0:00:33]} 14. Nb3 {[%emt 0:00:39]} Ba6 {[%emt 0:03:19]} 15. Rfe1 {[%emt 0:01:18]} Bc4 16. Rad1 {[%emt 0:06:34]} h6 {[%emt 0:07:46]} 17. Rc1 {[%emt 0:03:35]} Bd5 {[%emt 0:00:11]} 18. Rc3 {[%emt 0:04:29]} Rc8 {[%emt 0:01:52]} 19. Rce3 {[%emt 0:03:22]} Qd6 {[%emt 0:01:39]} 20. Ne5 {[%emt 0:08:40]} Nb4 {[%emt 0:05:49]} 21. Rg3 {[%emt 0:04:22]} Kh7 {[%emt 0:00:59]} 22. Qf4 {[%emt 0:12:38]} Rf6 {[%emt 0:08:01]} 23. Nd2 {[%emt 0:10:10]} g5 {[%emt 0:05:51]} 24. Ndc4 {[%emt 0:08:01]} Rxc4 {[%emt 0:07:11]} 25. Qd2 {[%emt 0:00:17]} Rc2 {[%emt 0:00:36]} 26. Qd1 {[%emt 0:01:03]} f4 {[%emt 0:00:39]} 27. Rh3 {[%emt 0:03:32]} Qe7 {[%emt 0:01:09]} 28. a3 {[%emt 0:00:36]} Rxb2 {[%emt 0:02:04]} 29. axb4 {[%emt 0:00:06]} Qxb4 {[%emt 0:02:32]} 30. Qd3+ {[%emt 0:01:08]} Kg8 {[%emt 0:02:21]} 31. Rc1 {[%emt 0:00:37]} Qd2 {[%emt 0:01:47]} 32. Rc8+ {[%emt 0:01:22]} Kg7 {[%emt 0:02:20]} 33. Rc7+ {[%emt 0:00:58]} Kf8 {[%emt 0:00:58]} 34. Qa3+ {[%emt 0:01:20]} Qb4 {[%emt 0:01:42]} 35. Rc8+ {[%emt 0:00:26]} Ke7 {[%emt 0:00:24]} 36. Qxa7+ {[%emt 0:00:15]} Kd6 {[%emt 0:00:35]} 37. Qd7# {[%emt 0:00:28]} 1-0

[Event "EYCC 2017"]
[Site "Mamaia"]
[Date "2017.09.06"]
[Round "2"]
[White "Novomeska, Karin"]
[Black "Svergina, Sofya"]
[Result "0-1"]
[ECO "E00"]
[WhiteElo "1116"]
[BlackElo "1472"]
[Annotator "NA"]
[PlyCount "118"]
[EventDate "2017.??.??"]
[EventType "swiss"]
[EventCountry "ROU"]
[SourceTitle "playchess.com"]
[Source "ChessBase"]
[SourceQuality "1"]
[TimeControl "40/5400+30:1800+30"]

1. d4 {[%emt 0:00:00]} Nf6 {[%emt 0:00:08]} 2. c4 {[%emt 0:00:00]} e6 {[%emt 0:00:05]} 3. Bg5 {[%emt 0:00:00]} b6 {[%emt 0:02:27]} 4. Nc3 {[%emt 0:00:28]} Bb4 {[%emt 0:06:27]} 5. a3 {[%emt 0:02:14]} Bxc3+ {[%emt 0:00:07]} 6. bxc3 {[%emt 0:00:08]} h6 {[%emt 0:00:40]} 7. Bh4 {[%emt 0:00:11]} Bb7 {[%emt 0:02:16]} 8. e3 {[%emt 0:01:37]} d6 {[%emt 0:03:01]} 9. Nf3 {[%emt 0:00:45]} Nbd7 {[%emt 0:00:51]} 10. Be2 {[%emt 0:13:04]} O-O {[%emt 0:03:24]} 11. O-O {[%emt 0:00:18]} c5 {[%emt 0:05:26]} 12. Re1 {[%emt 0:14:16]} Qc7 {[%emt 0:04:43]} 13. Bd3 {[%emt 0:06:46]} Ne4 {[%emt 0:06:30]} 14. Rc1 {[%emt 0:06:27]} Rac8 {[%emt 0:05:31]} 15. Qc2 {[%emt 0:02:12]} d5 {[%emt 0:02:21]} 16. cxd5 {[%emt 0:03:00]} exd5 {[%emt 0:00:13]} 17. Re2 {[%emt 0:04:34]} Rfe8 {[%emt 0:04:31]} 18. c4 {[%emt 0:01:47]} dxc4 {[%emt 0:10:56]} 19. Bxc4 {[%emt 0:03:00]} Nd6 {[%emt 0:02:28]} 20. Bg3 {[%emt 0:06:49]} Bxf3 {[%emt 0:00:43]} 21. gxf3 {[%emt 0:00:11]} Nf6 22. e4 {[%emt 0:02:13]} Nh5 {[%emt 0:07:49]} 23. Be5 {[%emt 0:01:47]} Qe7 {[%emt 0:04:13]} 24. Qd2 {[%emt 0:06:23]} cxd4 {[%emt 0:01:33]} 25. Qxd4 {[%emt 0:02:21]} Qxe5 {[%emt 0:01:07]} 26. Qxe5 {[%emt 0:01:43]} Rxe5 {[%emt 0:00:10]} 27. Rec2 {[%emt 0:01:02]} Nxc4 {[%emt 0:00:09]} 28. Rxc4 {[%emt 0:00:13]} Rxc4 {[%emt 0:00:08]} 29. Rxc4 {[%emt 0:00:05]} Rc5 {[%emt 0:00:16]} 30. Ra4 {[%emt 0:00:53]} Nf4 {[%emt 0:00:23]} 31. h4 {[%emt 0:00:32]} Ra5 {[%emt 0:00:49]} 32. Rxa5 {[%emt 0:00:33]} bxa5 {[%emt 0:00:06]} 33. Kf1 {[%emt 0:00:21]} Kf8 {[%emt 0:00:06]} 34. Ke1 {[%emt 0:00:09]} Ke7 {[%emt 0:00:05]} 35. Kd2 {[%emt 0:00:06]} Kd6 {[%emt 0:00:04]} 36. Kc3 {[%emt 0:00:34]} Kc5 {[%emt 0:00:07]} 37. a4 {[%emt 0:00:51]} f6 {[%emt 0:00:07]} 38. Kd2 {[%emt 0:00:52]} g5 {[%emt 0:00:38]} 39. hxg5 {[%emt 0:00:52]} fxg5 {[%emt 0:00:12]} 40. Ke1 {[%emt 0:00:00]} h5 {[%emt 0:00:05]} 41. Kf1 {[%emt 0:01:46]} g4 {[%emt 0:00:17]} 42. fxg4 {[%emt 0:00:16]} hxg4 {[%emt 0:00:06]} 43. Kg1 {[%emt 0:00:19]} Kd4 {[%emt 0:00:05]} 44. Kh2 {[%emt 0:00:39]} Kxe4 {[%emt 0:00:15]} 45. Kg3 {[%emt 0:00:55]} Kf5 {[%emt 0:00:05]} 46. Kh2 {[%emt 0:00:53]} Ne2 {[%emt 0:00:23]} 47. Kg2 {[%emt 0:01:48]} Kf4 {[%emt 0:00:11]} 48. Kh2 {[%emt 0:00:52]} Kf3 {[%emt 0:00:20]} 49. Kh1 {[%emt 0:00:22]} Kxf2 {[%emt 0:00:08]} 50. Kh2 {[%emt 0:00:17]} g3+ {[%emt 0:00:28]} 51. Kh3 {[%emt 0:00:32]} g2 {[%emt 0:00:04]} 52. Kg4 {[%emt 0:00:10]} g1=Q+ {[%emt 0:00:06]} 53. Kf5 {[%emt 0:00:33]} Kf3 {[%emt 0:00:14]} 54. Ke5 {[%emt 0:00:43]} Qg4 {[%emt 0:00:09]} 55. Kd5 {[%emt 0:00:21]} Ke3 {[%emt 0:00:09]} 56. Kc5 {[%emt 0:00:31]} Kd3 {[%emt 0:00:08]} 57. Kb5 {[%emt 0:00:16]} Kc3 {[%emt 0:00:11]} 58. Kxa5 {[%emt 0:00:31]} Qb4+ {[%emt 0:00:07]} 59. Ka6 {[%emt 0:00:27]} Qb6# {[%emt 0:00:05]} 0-1

[Event "EYCC 2017"]
[Site "Mamaia"]
[Date "2017.09.06"]
[Round "2"]
[White "Labaznikova, Kseniya"]
[Black "Zavivaeva, Evelina"]
[Result "1/2-1/2"]
[ECO "C23"]
[WhiteElo "1104"]
[BlackElo "1406"]
[Annotator "NA"]
[PlyCount "122"]
[EventDate "2017.??.??"]
[EventType "swiss"]
[EventCountry "ROU"]
[SourceTitle "playchess.com"]
[Source "ChessBase"]
[SourceQuality "1"]
[TimeControl "40/5400+30:1800+30"]

1. e4 {[%emt 0:00:00]} e5 {[%emt 0:00:03]} 2. Nf3 Nc6 3. Bc4 Bc5 {[%emt 0:01:42]} 4. c3 {[%emt 0:00:14]} d6 {[%emt 0:00:13]} 5. d4 {[%emt 0:00:34]} exd4 {[%emt 0:00:09]} 6. cxd4 {[%emt 0:00:20]} Bb6 {[%emt 0:00:13]} 7. h3 {[%emt 0:00:58]} Nf6 {[%emt 0:02:29]} 8. Bg5 {[%emt 0:01:38]} Qe7 {[%emt 0:01:34]} 9. O-O {[%emt 0:03:14]} O-O {[%emt 0:01:08]} 10. Re1 {[%emt 0:05:17]} Rd8 {[%emt 0:04:45]} 11. Nc3 {[%emt 0:02:44]} Qf8 {[%emt 0:17:23]} 12. Nd5 {[%emt 0:04:57]} Be6 {[%emt 0:05:41]} 13. Nxf6+ {[%emt 0:00:51]} gxf6 {[%emt 0:01:04]} 14. d5 {[%emt 0:03:36]} Qg7 {[%emt 0:05:55]} 15. dxe6 {[%emt 0:01:21]} fxg5 {[%emt 0:00:52]} 16. exf7+ {[%emt 0:00:08]} Kh8 {[%emt 0:00:24]} 17. b3 {[%emt 0:01:31]} Na5 {[%emt 0:02:54]} 18. Bd3 {[%emt 0:03:57]} Qxf7 {[%emt 0:00:58]} 19. Qc2 {[%emt 0:01:46]} Qg7 {[%emt 0:01:32]} 20. Rad1 {[%emt 0:02:35]} Nc6 {[%emt 0:00:48]} 21. Re2 {[%emt 0:03:02]} Rf8 {[%emt 0:01:59]} 22. Rde1 {[%emt 0:02:38]} g4 {[%emt 0:01:18]} 23. hxg4 {[%emt 0:00:42]} Qxg4 {[%emt 0:01:12]} 24. Qb2+ {[%emt 0:01:23]} Qg7 {[%emt 0:00:35]} 25. Qxg7+ {[%emt 0:00:27]} Kxg7 {[%emt 0:00:04]} 26. Rf1 {[%emt 0:01:21]} Rad8 {[%emt 0:01:46]} 27. Ng5 {[%emt 0:01:53]} Rde8 {[%emt 0:00:51]} 28. Bc4 {[%emt 0:00:24]} Rf6 {[%emt 0:01:25]} 29. Nf3 {[%emt 0:04:14]} Rf4 {[%emt 0:02:13]} 30. Ng5 {[%emt 0:02:32]} Kg6 {[%emt 0:01:59]} 31. g3 {[%emt 0:01:25]} Rf6 {[%emt 0:01:03]} 32. Nh3 {[%emt 0:00:45]} Nd4 {[%emt 0:00:53]} 33. Rb2 {[%emt 0:03:19]} Kg7 {[%emt 0:01:41]} 34. Nf4 {[%emt 0:02:37]} Re5 {[%emt 0:01:52]} 35. Kg2 {[%emt 0:01:10]} c6 {[%emt 0:01:57]} 36. Bd3 {[%emt 0:01:19]} Ne6 {[%emt 0:01:25]} 37. Nxe6+ {[%emt 0:01:47]} Rexe6 {[%emt 0:00:36]} 38. Re2 {[%emt 0:01:23]} Bd4 {[%emt 0:00:59]} 39. Rd1 {[%emt 0:02:17]} Re5 {[%emt 0:01:39]} 40. f3 {[%emt 0:04:08]} a5 {[%emt 0:31:50]} 41. Ba6 {[%emt 0:00:58]} bxa6 {[%emt 0:00:00]} 42. Rxd4 {[%emt 0:00:23]} Rg6 {[%emt 0:00:00]} 43. Red2 {[%emt 0:00:23]} Rc5 {[%emt 0:00:00]} 44. Rxd6 {[%emt 0:00:41]} Rxd6 {[%emt 0:00:00]} 45. Rxd6 {[%emt 0:00:05]} Rc2+ {[%emt 0:00:00]} 46. Kh3 {[%emt 0:00:09]} Rxa2 {[%emt 0:00:00]} 47. Rxc6 {[%emt 0:00:07]} a4 {[%emt 0:00:00]} 48. bxa4 {[%emt 0:01:02]} Rxa4 {[%emt 0:00:00]} 49. e5 {[%emt 0:00:47]} a5 {[%emt 0:00:00]} 50. Ra6 {[%emt 0:00:13]} Ra1 {[%emt 0:00:00]} 51. f4 {[%emt 0:00:32]} a4 {[%emt 0:00:00]} 52. f5 {[%emt 0:00:09]} a3 {[%emt 0:00:00]} 53. f6+ {[%emt 0:00:27]} Kg6 {[%emt 0:00:00]} 54. g4 {[%emt 0:01:26]} a2 {[%emt 0:00:00]} 55. Kg2 {[%emt 0:00:18]} Re1 {[%emt 0:00:00]} 56. Rxa2 {[%emt 0:00:21]} Rxe5 {[%emt 0:00:00]} 57. Ra6 {[%emt 0:00:24]} h5 {[%emt 0:00:00]} 58. gxh5+ {[%emt 0:00:32]} Rxh5 {[%emt 0:00:00]} 59. Kg3 {[%emt 0:00:16]} Rf5 {[%emt 0:00:00]} 60. Kg4 {[%emt 0:00:40]} Rxf6 {[%emt 0:00:00]} 61. Rxf6+ {[%emt 0:00:19]} Kxf6 {[%emt 0:00:00]} 1/2-1/2